fUSD/lending_fUSD_20240921
["ID","MTS","AMOUNT","RATE_DAILY","PERIOD"]
[338736812,1726902653320,-500.0,0.00013899,2]
[338736813,1726902653331,-500.0,0.00013899,2]
[338736814,1726902653341,-500.0,0.00013899,2]
[338736815,1726902653351,-500.0,0.00013899,2]
[338736816,1726902653362,-500.0,0.00013899,2]
[338736817,1726902653373,-500.0,0.00013899,2]
[338736818,1726902653383,-500.0,0.00013899,2]
[338736819,1726902653393,-532.72,0.00013899,2]
[338736820,1726902653402,-532.72,0.00013899,2]
[338736821,1726902653412,-500.0,0.00013899,2]
[338736822,1726902653422,-500.0,0.00013899,2]
[338736823,1726902653431,-500.0,0.00013899,2]
[338736824,1726902653442,-500.0,0.00013899,2]
[338736825,1726902653451,-500.0,0.00013899,2]
[338736826,1726902653575,-500.0,0.00013899,2]
[338736827,1726902653585,-277.39,0.00013899,2]
[338736828,1726902653595,-841.02,0.00013899,2]
[338736829,1726902653604,-841.02,0.00013899,2]
[338736830,1726902653614,-500.0,0.00013899,2]
[338736831,1726902653624,-500.0,0.00013899,2]
[338736832,1726902653633,-217.3,0.00013899,2]
[338736833,1726902653643,-308.62,0.00013899,2]
[338736834,1726902653653,-269.78,0.00013899,2]
[338736835,1726902653663,-500.0,0.00013899,2]
[338736836,1726902653672,-500.0,0.00013899,2]
[338736837,1726902653682,-500.0,0.00013899,2]
[338736838,1726902653691,-500.0,0.00013899,2]
[338736839,1726902653700,-500.0,0.00013899,2]
[338736840,1726902653710,-500.0,0.00013899,2]
[338736841,1726902653719,-326.98,0.00013899,2]
[338736842,1726902653732,-500.0,0.00013899,2]
[338736843,1726902653742,-467.88,0.00013899,2]
[338736844,1726902653751,-500.0,0.00013899,2]
[338736845,1726902653762,-294.4,0.00013899,2]
[338736846,1726902653771,-500.0,0.00013899,2]
[338736847,1726902653781,-631.1,0.00013899,2]
[338736848,1726902653790,-429.8,0.00013899,2]
[338736849,1726902653800,-38453.93500137,0.000139,2]
[338736850,1726902653812,-997.62972712,0.000139,2]
[338736851,1726902653824,-738.1314692,0.000139,2]
[338736852,1726902653836,-340.68338463,0.000139,2]
[338736853,1726902653848,-25215.0351227,0.000139,2]
[338736854,1726902653860,-947.40643778,0.000139,2]
[338736855,1726902653871,-446.91429972,0.000139,2]
[338736856,1726902653883,-2020.54450368,0.000139,2]
[338736857,1726902653894,-363.217563,0.000139,2]
[338736858,1726902653909,-571.59772232,0.000139,2]
[338736859,1726902653920,-384.34999965,0.000139,2]
[338736860,1726902653932,-1920.20965112,0.000139,2]
[338736861,1726902653943,-7724.67253932,0.000139,2]
[338736862,1726902653981,-500.0,0.00012885,2]
[338736863,1726902653991,-1100.0,0.00013634,2]
[338736864,1726902654004,-618.17149385,0.00013634,2]
[338736865,1726902654014,-753.4,0.00013836,2]
[338736866,1726902654023,-303.62850615,0.00013836,2]
[338736867,1726902654035,-119.15149385,0.00013836,2]
[338736868,1726902654045,-23952.89153939,0.000139,2]
[338736869,1726902654054,-500.0,0.00013904,2]
[338736870,1726902654063,-420.0,0.00013931,2]
[338736871,1726902654073,-298.28169975,0.00013937,2]
[338736872,1726902654083,-155.26058302,0.00013975,2]
[338736873,1726902654094,-206.0,0.0001398,2]
[338736874,1726902654104,-121.7380955,0.0001398,2]
[338736875,1726902654312,-1794.36314389,0.0001398,2]
[338736876,1726902654324,-530.0176596,0.0001398,2]
[338736877,1726902654335,-559.24,0.00013989,2]
[338736878,1726902654344,-421.94785814,0.00014028,2]
[338736879,1726902654355,-150.0,0.00014059,2]
[338736880,1726902654364,-1000.0,0.000141,2]
[338736881,1726902654373,-365.266,0.00014111,2]
[338736882,1726902654384,-206.0,0.0001415,2]
[338736883,1726902654394,-298.28169975,0.00014163,2]
[338736884,1726902654404,-5778.35155874,0.00014175,2]
[338736885,1726902654420,-500.0,0.00012997,2]
[338736886,1726902654430,-2837.89376783,0.00014175,2]
[338736887,1726902654442,-1668.32821834,0.00014175,2]
[338736888,1726902654453,-5114.97780404,0.00014175,2]
[338736889,1726902654464,-611.967,0.00014175,2]
[338736890,1726902654477,-4803.92544315,0.00014175,2]
[338736891,1726902654486,-600.0,0.00014178,2]
[338736892,1726902654495,-9589.34447636,0.00014178,2]
[338736893,1726902654507,-595.06691331,0.00014178,2]
[338736894,1726902654518,-371.88291753,0.00014178,2]
[338736895,1726902654529,-561.2341853,0.00014178,2]
[338736896,1726902654539,-500.0,0.00014185,2]
[338736897,1726902654549,-263.5658147,0.00014186,2]
[338736898,1726902654561,-236.4341853,0.00014186,2]
[338736899,1726902654570,-659.7506079,0.00014186,2]
[338736900,1726902654581,-344.849717,0.00014186,2]
[338736901,1726902654592,-302.0,0.00014186,2]
[338736902,1726902654604,-693.3996751,0.00014186,2]
[338736903,1726902654614,-264.1203249,0.00014186,2]
[338736904,1726902654626,-235.8796751,0.00014186,2]
[338736905,1726902654635,-500.0,0.00014186,2]
[338736906,1726902654645,-500.0,0.00014186,2]
[338736907,1726902654656,-152.0,0.0001419,3]
[338736908,1726902654665,-269.78,0.00014198,2]
[338736909,1726902654674,-722.74,0.00014198,2]
[338736910,1726902654684,-597.2,0.00014198,2]
[338736911,1726902654694,-500.0,0.00014198,2]
[338736912,1726902654704,-500.0,0.00014198,2]
[338736913,1726902654714,-500.0,0.00014198,2]
[338736914,1726902654726,-588.33,0.00014198,2]
[338736915,1726902654738,-500.0,0.00014198,2]
[338736916,1726902654748,-500.0,0.00014198,2]
[338736917,1726902654757,-500.0,0.00014198,2]
[338736918,1726902654767,-500.0,0.00014198,2]
[338736919,1726902654777,-500.0,0.00014198,2]
[338736920,1726902654786,-162.78018815,0.00014199,2]
[338736921,1726902654796,-2000.0,0.000142,2]
[338736922,1726902654806,-2301.47523068,0.000142,2]
[338736923,1726902654815,-11117.5284925,0.00014228,2]
[338736924,1726902654825,-571.66,0.00014238,2]
[338736925,1726902654835,-260.16,0.00014238,2]
[338736926,1726902654845,-419.6,0.00014238,2]
[338736927,1726902654854,-500.0,0.00014238,2]
[338736928,1726902654863,-645.71,0.00014238,2]
[338736929,1726902654872,-1301.65,0.00014238,2]
[338736930,1726902654882,-500.0,0.00014238,2]
[338736931,1726902654891,-500.0,0.00014238,2]
[338736932,1726902654901,-485.5,0.00014238,2]
[338736933,1726902654910,-4996.91900898,0.00014248,2]
[338736934,1726902706414,500.0,0.00011164,2]
[338736935,1726902711522,500.0,0.00011164,2]
[338736936,1726902748200,342.93,0.00011287,2]
[338736937,1726902902225,284.22,0.00010959,2]
[338736951,1726903288799,1050.0,0.00011,2]
[338736952,1726903350378,325.78,0.00010986,2]
[338736954,1726903610552,510.63589545,0.00011164,2]
[338736956,1726903676238,526.76269,0.00012,2]
[338736958,1726903761351,2400.0,0.00012,2]
[338736959,1726903774517,2423.04407289,0.00012,3]
[338736960,1726903796745,150.0,0.00012019,2]
[338736961,1726903814987,816.66382769,0.00012033,2]
[338736977,1726903831855,-5575.04,0.0001206,2]
[338736980,1726903831869,-250.0,0.00012133,2]
[338736982,1726903831882,-360.0,0.00012258,2]
[338736983,1726903831894,-196.1047,0.0001268,2]
[338736984,1726903831907,-374.088873,0.00012699,2]
[338736985,1726903831920,-244.61,0.00012764,2]
[338736986,1726903831932,-2835.73823008,0.0001278,2]
[338736987,1726903831953,-1306.0,0.0001278,2]
[338736988,1726903831971,-3586.11267,0.0001278,2]
[338736989,1726903831988,-754.897,0.0001278,2]
[338736990,1726903832001,-2578.53002021,0.0001278,2]
[338736991,1726903832013,-369.73790219,0.00012797,2]
[338736992,1726903832027,-3302.4465138,0.00012797,2]
[338736993,1726903832043,-8306.76325593,0.00012797,2]
[338736994,1726903832054,-4113.70013922,0.0001288,2]
[338736995,1726903832067,-150.0,0.00012884,2]
[338736996,1726903832079,-514.92,0.00012885,2]
[338736997,1726903832091,-500.0,0.00012885,2]
[338736998,1726903832103,-651.23,0.00012885,2]
[338736999,1726903832115,-500.0,0.00012885,2]
[338737000,1726903832127,-500.0,0.00012885,2]
[338737001,1726903832139,-256.25522214,0.00012885,2]
[338737002,1726903832151,-369.48,0.00012885,2]
[338737003,1726903832164,-500.0,0.00012885,2]
[338737004,1726903832176,-500.0,0.00012885,2]
[338737005,1726903832188,-500.0,0.00012885,2]
[338737006,1726903832200,-500.0,0.00012885,2]
[338737007,1726903832212,-500.0,0.00012885,2]
[338737008,1726903832224,-500.0,0.00012885,2]
[338737009,1726903832236,-500.0,0.00012885,2]
[338737010,1726903832247,-500.0,0.00012885,2]
[338737011,1726903832259,-500.0,0.00012885,2]
[338737012,1726903832271,-500.0,0.00012885,2]
[338737014,1726903832283,-500.0,0.00012885,2]
[338737016,1726903832294,-500.0,0.00012885,2]
[338737018,1726903832307,-500.0,0.00012885,2]
[338737020,1726903832319,-500.0,0.00012885,2]
[338737023,1726903832331,-500.0,0.00012885,2]
[338737025,1726903832343,-174.6,0.00012885,2]
[338737026,1726903832355,-500.0,0.00012885,2]
[338737027,1726903832367,-500.0,0.00012885,2]
[338737028,1726903832379,-500.0,0.00012885,2]
[338737029,1726903832391,-500.0,0.00012885,2]
[338737030,1726903832404,-500.0,0.00012885,2]
[338737031,1726903832417,-500.0,0.00012885,2]
[338737032,1726903832429,-500.0,0.00012885,2]
[338737033,1726903832441,-500.0,0.00012885,2]
[338737034,1726903832452,-500.0,0.00012885,2]
[338737035,1726903832464,-500.0,0.00012885,2]
[338737036,1726903832476,-500.0,0.00012885,2]
[338737037,1726903832489,-500.0,0.00012885,2]
[338737038,1726903832500,-500.0,0.00012885,2]
[338737039,1726903832512,-500.0,0.00012885,2]
[338737040,1726903832524,-500.0,0.00012885,2]
[338737041,1726903832536,-500.0,0.00012885,2]
[338737042,1726903832547,-500.0,0.00012885,2]
[338737043,1726903832558,-500.0,0.00012885,2]
[338737044,1726903832569,-500.0,0.00012885,2]
[338737045,1726903832581,-610.46,0.00012885,2]
[338737046,1726903832593,-500.0,0.00012885,2]
[338737047,1726903832607,-500.0,0.00012885,2]
[338737048,1726903832619,-500.0,0.00012885,2]
[338737049,1726903832631,-500.0,0.00012885,2]
[338737050,1726903832643,-500.0,0.00012885,2]
[338737051,1726903832656,-500.0,0.00012885,2]
[338737052,1726903832668,-500.0,0.00012885,2]
[338737053,1726903832679,-500.0,0.00012885,2]
[338737054,1726903832691,-500.0,0.00012885,2]
[338737055,1726903832703,-500.0,0.00012885,2]
[338737056,1726903832714,-542.73,0.00012885,2]
[338737057,1726903832725,-500.0,0.00012885,2]
[338737058,1726903832738,-500.0,0.00012885,2]
[338737059,1726903832750,-500.0,0.00012885,2]
[338737060,1726903832761,-500.0,0.00012885,2]
[338737061,1726903832772,-500.0,0.00012885,2]
[338737062,1726903832785,-543.6,0.00012885,2]
[338737063,1726903832796,-500.0,0.00012885,2]
[338737064,1726903832807,-500.0,0.00012885,2]
[338737065,1726903832819,-500.0,0.00012885,2]
[338737066,1726903832832,-500.0,0.00012885,2]
[338737067,1726903832843,-477.29145946,0.00012885,2]
[338737068,1726903832856,-500.0,0.00012885,2]
[338737069,1726903832867,-500.0,0.00012885,2]
[338737070,1726903832878,-500.0,0.00012885,2]
[338737071,1726903832890,-500.0,0.00012885,2]
[338737072,1726903832902,-500.0,0.00012885,2]
[338737073,1726903832919,-526.0,0.00012885,2]
[338737074,1726903832931,-500.0,0.00012885,2]
[338737075,1726903832942,-500.0,0.00012885,2]
[338737076,1726903832955,-500.0,0.00012885,2]
[338737077,1726903832967,-500.0,0.00012885,2]
[338737078,1726903832980,-500.0,0.00012885,2]
[338737079,1726903832993,-500.0,0.00012885,2]
[338737080,1726903833004,-500.0,0.00012885,2]
[338737081,1726903833016,-500.0,0.00012885,2]
[338737082,1726903833028,-500.0,0.00012885,2]
[338737083,1726903833041,-500.0,0.00012885,2]
[338737084,1726903833053,-500.0,0.00012885,2]
[338737085,1726903833066,-500.0,0.00012885,2]
[338737086,1726903833078,-500.0,0.00012885,2]
[338737087,1726903833090,-500.0,0.00012885,2]
[338737088,1726903833103,-500.0,0.00012885,2]
[338737089,1726903833116,-500.0,0.00012885,2]
[338737090,1726903833128,-500.0,0.00012885,2]
[338737091,1726903833141,-500.0,0.00012885,2]
[338737092,1726903833152,-483.1,0.00012885,2]
[338737093,1726903833168,-500.0,0.00012885,2]
[338737094,1726903833180,-500.0,0.00012885,2]
[338737095,1726903833193,-500.0,0.00012885,2]
[338737096,1726903833204,-500.0,0.00012885,2]
[338737097,1726903833217,-500.0,0.00012885,2]
[338737098,1726903833229,-589.49,0.00012885,2]
[338737099,1726903833240,-500.0,0.00012885,2]
[338737100,1726903833252,-500.0,0.00012885,2]
[338737101,1726903833263,-500.0,0.00012885,2]
[338737102,1726903833276,-500.0,0.00012885,2]
[338737103,1726903833289,-500.0,0.00012885,2]
[338737104,1726903833302,-500.0,0.00012885,2]
[338737105,1726903833314,-500.0,0.00012885,2]
[338737106,1726903833326,-500.0,0.00012885,2]
[338737107,1726903833338,-500.0,0.00012885,2]
[338737108,1726903833351,-583.25,0.00012885,2]
[338737109,1726903833363,-500.0,0.00012885,2]
[338737110,1726903833374,-500.0,0.00012885,2]
[338737111,1726903833386,-500.0,0.00012885,2]
[338737112,1726903833398,-500.0,0.00012885,2]
[338737113,1726903833412,-500.0,0.00012885,2]
[338737114,1726903833423,-500.0,0.00012885,2]
[338737115,1726903833435,-500.0,0.00012885,2]
[338737116,1726903833447,-636.67,0.00012885,2]
[338737117,1726903833459,-500.0,0.00012885,2]
[338737118,1726903833470,-500.0,0.00012885,2]
[338737119,1726903833483,-500.0,0.00012885,2]
[338737120,1726903833496,-500.0,0.00012885,2]
[338737121,1726903833507,-500.0,0.00012885,2]
[338737122,1726903833519,-500.0,0.00012885,2]
[338737123,1726903833531,-469.62,0.00012885,2]
[338737124,1726903833543,-500.0,0.00012885,2]
[338737125,1726903833556,-500.0,0.00012885,2]
[338737126,1726903833567,-500.0,0.00012885,2]
[338737127,1726903833579,-500.0,0.00012885,2]
[338737128,1726903833592,-500.0,0.00012885,2]
[338737129,1726903833608,-500.0,0.00012885,2]
[338737130,1726903833620,-500.0,0.00012885,2]
[338737131,1726903833632,-500.0,0.00012885,2]
[338737132,1726903833644,-557.96,0.00012885,2]
[338737133,1726903833658,-500.0,0.00012885,2]
[338737134,1726903833669,-258.39464055,0.00012885,2]
[338737135,1726903833681,-500.0,0.00012885,2]
[338737136,1726903833693,-500.0,0.00012885,2]
[338737137,1726903833705,-500.0,0.00012885,2]
[338737138,1726903833717,-500.0,0.00012885,2]
[338737139,1726903833729,-500.0,0.00012885,2]
[338737140,1726903833741,-500.0,0.00012885,2]
[338737141,1726903833755,-580.45,0.00012885,2]
[338737142,1726903833766,-500.0,0.00012885,2]
[338737143,1726903833778,-500.0,0.00012885,2]
[338737144,1726903833791,-500.0,0.00012885,2]
[338737145,1726903833803,-500.0,0.00012885,2]
[338737146,1726903833816,-500.0,0.00012885,2]
[338737147,1726903833828,-500.0,0.00012885,2]
[338737148,1726903833840,-500.0,0.00012885,2]
[338737149,1726903833851,-500.0,0.00012885,2]
[338737150,1726903833864,-500.0,0.00012885,2]
[338737151,1726903833876,-500.0,0.00012885,2]
[338737152,1726903833889,-500.0,0.00012885,2]
[338737153,1726903833901,-500.0,0.00012885,2]
[338737154,1726903833913,-500.0,0.00012885,2]
[338737155,1726903833925,-500.0,0.00012885,2]
[338737156,1726903834874,-500.0,0.00012885,2]
[338737157,1726903834884,-500.0,0.00012885,2]
[338737158,1726903834895,-500.0,0.00012885,2]
[338737159,1726903834904,-500.0,0.00012885,2]
[338737160,1726903834914,-500.0,0.00012885,2]
[338737161,1726903834924,-500.0,0.00012885,2]
[338737162,1726903834935,-500.0,0.00012885,2]
[338737163,1726903834944,-500.0,0.00012885,2]
[338737164,1726903834954,-500.0,0.00012885,2]
[338737165,1726903834963,-500.0,0.00012885,2]
[338737166,1726903834972,-500.0,0.00012885,2]
[338737167,1726903834982,-500.0,0.00012885,2]
[338737168,1726903834991,-500.0,0.00012885,2]
[338737169,1726903835000,-500.0,0.00012885,2]
[338737170,1726903835010,-500.0,0.00012885,2]
[338737171,1726903835019,-500.0,0.00012885,2]
[338737172,1726903835029,-500.0,0.00012885,2]
[338737173,1726903835038,-500.0,0.00012885,2]
[338737174,1726903835048,-500.0,0.00012885,2]
[338737175,1726903835057,-500.0,0.00012885,2]
[338737176,1726903835066,-500.0,0.00012885,2]
[338737177,1726903835076,-500.0,0.00012885,2]
[338737178,1726903835085,-500.0,0.00012885,2]
[338737179,1726903835095,-500.0,0.00012885,2]
[338737180,1726903835104,-500.0,0.00012885,2]
[338737181,1726903835114,-500.0,0.00012885,2]
[338737182,1726903835123,-500.0,0.00012885,2]
[338737183,1726903835133,-500.0,0.00012885,2]
[338737184,1726903835142,-500.0,0.00012885,2]
[338737185,1726903835152,-500.0,0.00012885,2]
[338737186,1726903835163,-500.0,0.00012885,2]
[338737187,1726903835173,-500.0,0.00012885,2]
[338737188,1726903835182,-500.0,0.00012885,2]
[338737189,1726903835191,-500.0,0.00012885,2]
[338737190,1726903835201,-500.0,0.00012885,2]
[338737191,1726903835210,-500.0,0.00012885,2]
[338737192,1726903835219,-500.0,0.00012885,2]
[338737193,1726903835229,-500.0,0.00012885,2]
[338737194,1726903835238,-500.0,0.00012885,2]
[338737195,1726903835248,-500.0,0.00012885,2]
[338737196,1726903835257,-500.0,0.00012885,2]
[338737197,1726903835267,-500.0,0.00012885,2]
[338737198,1726903835276,-500.0,0.00012885,2]
[338737199,1726903835287,-500.0,0.00012885,2]
[338737200,1726903835297,-500.0,0.00012885,2]
[338737201,1726903835307,-500.0,0.00012885,2]
[338737202,1726903835316,-500.0,0.00012885,2]
[338737203,1726903835326,-1025.84,0.00012885,2]
[338737204,1726903835337,-500.0,0.00012885,2]
[338737205,1726903835346,-500.0,0.00012885,2]
[338737206,1726903835356,-500.0,0.00012885,2]
[338737207,1726903835365,-500.0,0.00012885,2]
[338737208,1726903835375,-500.0,0.00012885,2]
[338737209,1726903835384,-500.0,0.00012885,2]
[338737210,1726903835394,-500.0,0.00012885,2]
[338737211,1726903835404,-500.0,0.00012885,2]
[338737212,1726903835416,-28682.289,0.00012885,2]
[338737213,1726903835426,-44543.2249,0.00012897,2]
[338737214,1726903835435,-272.8281,0.00012897,2]
[338737215,1726903835445,-252.7718762,0.000129,2]
[338737216,1726903835455,-2101.93406384,0.000129,2]
[338737217,1726903835464,-320.31531078,0.000129,2]
[338737218,1726903835474,-250.0,0.00012916,2]
[338737219,1726903835483,-158.91,0.00012927,2]
[338737220,1726903835493,-178.85,0.00012933,2]
[338737221,1726903835502,-371.99471297,0.00012973,2]
[338737222,1726903835511,-152.07,0.0001299,2]
[338737223,1726903835520,-500.0,0.00012996,2]
[338737224,1726903835530,-500.0,0.00012996,2]
[338737225,1726903835539,-500.0,0.00012996,2]
[338737226,1726903835548,-500.0,0.00012996,2]
[338737227,1726903835558,-533.92,0.00012996,2]
[338737228,1726903835567,-500.0,0.00012996,2]
[338737229,1726903835577,-500.0,0.00012996,2]
[338737230,1726903835586,-500.0,0.00012996,2]
[338737231,1726903835595,-500.0,0.00012996,2]
[338737232,1726903835608,-500.0,0.00012996,2]
[338737233,1726903835617,-549.96,0.00012996,2]
[338737234,1726903835626,-500.0,0.00012996,2]
[338737235,1726903835635,-500.0,0.00012996,2]
[338737236,1726903835645,-500.0,0.00012996,2]
[338737237,1726903835654,-500.0,0.00012996,2]
[338737238,1726903835673,-500.0,0.00012996,2]
[338737239,1726903835683,-500.0,0.00012996,2]
[338737240,1726903835692,-210.68467501,0.00012996,2]
[338737241,1726903835701,-500.0,0.00012996,2]
[338737242,1726903835710,-500.0,0.00012996,2]
[338737243,1726903835719,-500.0,0.00012996,2]
[338737244,1726903835728,-538.89,0.00012996,2]
[338737245,1726903835738,-500.0,0.00012996,2]
[338737246,1726903835747,-500.0,0.00012996,2]
[338737247,1726903835757,-500.0,0.00012996,2]
[338737248,1726903835766,-500.0,0.00012996,2]
[338737249,1726903835775,-500.0,0.00012996,2]
[338737250,1726903835784,-500.0,0.00012996,2]
[338737251,1726903835793,-568.78,0.00012996,2]
[338737252,1726903835802,-500.0,0.00012996,2]
[338737253,1726903835811,-500.0,0.00012996,2]
[338737254,1726903835821,-513.37,0.00012996,2]
[338737255,1726903835830,-539.88,0.00012996,2]
[338737256,1726903835840,-411.08235933,0.00012996,2]
[338737257,1726903835849,-628.24,0.00012996,2]
[338737258,1726903835858,-500.0,0.00012996,2]
[338737259,1726903835867,-500.0,0.00012996,2]
[338737260,1726903835876,-500.0,0.00012996,2]
[338737261,1726903835886,-500.0,0.00012996,2]
[338737262,1726903835895,-500.0,0.00012996,2]
[338737263,1726903835904,-500.0,0.00012996,2]
[338737264,1726903835916,-500.0,0.00012996,2]
[338737265,1726903835925,-500.0,0.00012996,2]
[338737266,1726903835935,-500.0,0.00012996,2]
[338737267,1726903835944,-500.0,0.00012996,2]
[338737268,1726903835953,-500.0,0.00012996,2]
[338737269,1726903835962,-500.0,0.00012996,2]
[338737270,1726903835971,-500.0,0.00012996,2]
[338737271,1726903835980,-500.0,0.00012996,2]
[338737272,1726903835990,-500.0,0.00012996,2]
[338737273,1726903835999,-500.0,0.00012996,2]
[338737274,1726903836008,-500.0,0.00012996,2]
[338737275,1726903836018,-500.0,0.00012996,2]
[338737276,1726903836027,-500.0,0.00012996,2]
[338737277,1726903836036,-500.0,0.00012996,2]
[338737278,1726903836045,-500.0,0.00012996,2]
[338737279,1726903836054,-500.0,0.00012996,2]
[338737280,1726903836064,-500.0,0.00012996,2]
[338737281,1726903836073,-500.0,0.00012996,2]
[338737282,1726903836082,-500.0,0.00012996,2]
[338737283,1726903836091,-500.0,0.00012996,2]
[338737284,1726903836100,-500.0,0.00012996,2]
[338737285,1726903836109,-500.0,0.00012996,2]
[338737286,1726903836118,-500.0,0.00012996,2]
[338737287,1726903836128,-522.75,0.00012997,2]
[338737288,1726903836137,-651.23,0.00012997,2]
[338737289,1726903836146,-519.83,0.00012997,2]
[338737290,1726903836156,-520.69,0.00012997,2]
[338737291,1726903836165,-272.82,0.00012997,2]
[338737292,1726903836174,-438.52,0.00012997,2]
[338737293,1726903836184,-500.0,0.00012997,2]
[338737294,1726903836194,-269.05,0.00012997,2]
[338737295,1726903836203,-203.17,0.00012997,2]
[338737296,1726903836212,-500.0,0.00012997,2]
[338737297,1726903836221,-500.0,0.00012997,2]
[338737298,1726903836231,-576.37,0.00012997,2]
[338737299,1726903836240,-304.38,0.00012997,2]
[338737300,1726903836249,-195.9,0.00012997,2]
[338737301,1726903836258,-500.0,0.00012997,2]
[338737302,1726903836268,-196.82,0.00012997,2]
[338737303,1726903836277,-500.0,0.00012997,2]
[338737304,1726903836287,-360.94,0.00012997,2]
[338737305,1726903836296,-558.01,0.00012997,2]
[338737306,1726903836306,-408.98,0.00012997,2]
[338737307,1726903836315,-500.0,0.00012997,2]
[338737308,1726903836324,-500.0,0.00012997,2]
[338737309,1726903836334,-500.0,0.00012997,2]
[338737310,1726903836343,-541.06,0.00012997,2]
[338737311,1726903836352,-602.67,0.00012997,2]
[338737312,1726903836362,-464.13,0.00012997,2]
[338737313,1726903836371,-159.02,0.00012997,2]
[338737314,1726903836380,-500.0,0.00012997,2]
[338737315,1726903836389,-500.0,0.00012997,2]
[338737316,1726903836399,-153.63,0.00012997,2]
[338737317,1726903836408,-500.0,0.00012997,2]
[338737318,1726903836417,-543.6,0.00012997,2]
[338737319,1726903836426,-500.0,0.00012997,2]
[338737320,1726903836435,-210.8,0.00012997,2]
[338737321,1726903836445,-261.62,0.00012997,2]
[338737322,1726903836455,-328.23,0.00012997,2]
[338737323,1726903836465,-500.0,0.00012997,2]
[338737324,1726903836474,-500.0,0.00012997,2]
[338737325,1726903836483,-500.0,0.00012997,2]
[338737326,1726903836492,-500.0,0.00012997,2]
[338737327,1726903836502,-500.0,0.00012997,2]
[338737328,1726903836512,-500.0,0.00012997,2]
[338737329,1726903836521,-500.0,0.00012997,2]
[338737330,1726903836530,-631.37,0.00012997,2]
[338737331,1726903836539,-500.0,0.00012997,2]
[338737332,1726903836549,-500.0,0.00012997,2]
[338737333,1726903836558,-500.0,0.00012997,2]
[338737334,1726903836567,-500.0,0.00012997,2]
[338737335,1726903836576,-297.11,0.00012997,2]
[338737336,1726903836586,-477.17,0.00012997,2]
[338737337,1726903836596,-500.0,0.00012997,2]
[338737338,1726903836608,-500.0,0.00012997,2]
[338737339,1726903836618,-500.0,0.00012997,2]
[338737340,1726903836628,-647.41,0.00012997,2]
[338737341,1726903836637,-500.0,0.00012997,2]
[338737342,1726903836647,-500.0,0.00012997,2]
[338737343,1726903836656,-510.02,0.00012997,2]
[338737344,1726903836666,-355.56,0.00012997,2]
[338737345,1726903836675,-529.27,0.00012997,2]
[338737346,1726903836684,-500.0,0.00012997,2]
[338737347,1726903836694,-583.46,0.00012997,2]
[338737348,1726903836704,-282.47,0.00012997,2]
[338737349,1726903836713,-304.38,0.00012997,2]
[338737350,1726903836723,-196.82,0.00012997,2]
[338737351,1726903836732,-405.51,0.00012997,2]
[338737352,1726903836742,-500.0,0.00012997,2]